Workbook

Sheet ReadMe
A1: MCD Fiscal Multiplier Template
A5: Instructions for using this template:
A7: This template projects real GDP by “impacting” a baseline with fiscal measures (shocks). The template is based on a recent one developed by FAD, but is better tailored to the econometric work done in MCD and the specific needs of our department. Instructions on how to use the template are provided below.
C12: Cells Highlighted in orange indicate user inputs.
B14: 1) Make sure that macros are enabled in excel.
B16: 2) Set up basic assumptions on sheet 1 by selecting options from the drop down menus. Required user inputs include: country name, current year, choice for real baseline GDP, country group, and multiplier persistence assumptions. The recommended choice for baseline GDP is the trend of real GDP estimated using an HP filter, but if you prefer to use your own baseline GDP, please follow the instructions on sheet 3.
B21: 3) Enter the consolidation path on sheet 1 by entering fiscal measures in percent of GDP (non-cumulative measures). An example:
C23: To enter the following cumulative path for subsidy measures:
F25: =Current_Year -> 2014 | G25: =F25+1 -> 2015 | H25: =G25+1 -> 2016 | I25: =H25+1 -> 2017 | J25: =I25+1 -> 2018 | K25: =J25+1 -> 2019
D27: Subsidy measures | F27: -1 | G27: -2 | H27: -3 | I27: -4 | J27: -4 | K27: -4
C30: Simply enter the following on sheet 1:
F32: =Current_Year -> 2014 | G32: =F32+1 -> 2015 | H32: =G32+1 -> 2016 | I32: =H32+1 -> 2017 | J32: =I32+1 -> 2018 | K32: =J32+1 -> 2019
D34: Subsidy measures | F34: =F27 -> -1 | G34: =G27-F27 -> -1 | H34: =H27-G27 -> -1 | I34: =I27-H27 -> -1 | J34: =J27-I27 -> 0 | K34: =K27-J27 -> 0
B37: 4) Refresh sheet 2 by using the EcXL add-in in Excel.
B39: 5) Sheet 4 shows customized multiplier estimates based on user inputs. The options that the user inputs on sheet 1 will change both the size and persistence of the estimated fiscal multipliers.
B43: 6) Sheets 6 and 7 are output sheets that show the impact of the fiscal measures specified by the user on real output.

Sheet Characteristics
A1: Country Characteristics
A2: Countries | B2: ISO Code | C2: Ctry Code | D2: Group | E2: Oil Exporter?
A3: Afghanistan | B3: AFG | C3: 512 | D3: IMPOIL | E3: =IF(Codes[[#This Row],[Group]]="EXPOIL","YES","NO") -> NO
A4: Algeria | B4: DZA | C4: 612 | D4: EXPOIL | E4: =IF(Codes[[#This Row],[Group]]="EXPOIL","YES","NO") -> YES
A5: Armenia | B5: ARM | C5: 911 | D5: IMPOIL | E5: =IF(Codes[[#This Row],[Group]]="EXPOIL","YES","NO") -> NO
A6: Azerbaijan | B6: AZE | C6: 912 | D6: EXPOIL | E6: =IF(Codes[[#This Row],[Group]]="EXPOIL","YES","NO") -> YES
A7: Bahrain | B7: BHR | C7: 419 | D7: EXPOIL | E7: =IF(Codes[[#This Row],[Group]]="EXPOIL","YES","NO") -> YES
A8: Djibouti | B8: DJI | C8: 611 | D8: IMPOIL | E8: =IF(Codes[[#This Row],[Group]]="EXPOIL","YES","NO") -> NO
A9: Egypt | B9: EGY | C9: 469 | D9: IMPOIL | E9: =IF(Codes[[#This Row],[Group]]="EXPOIL","YES","NO") -> NO
A10: Georgia | B10: GEO | C10: 915 | D10: IMPOIL | E10: =IF(Codes[[#This Row],[Group]]="EXPOIL","YES","NO") -> NO
A11: Iran | B11: IRN | C11: 429 | D11: EXPOIL | E11: =IF(Codes[[#This Row],[Group]]="EXPOIL","YES","NO") -> YES
A12: Iraq | B12: IRQ | C12: 433 | D12: EXPOIL | E12: =IF(Codes[[#This Row],[Group]]="EXPOIL","YES","NO") -> YES
A13: Jordan | B13: JOR | C13: 439 | D13: IMPOIL | E13: =IF(Codes[[#This Row],[Group]]="EXPOIL","YES","NO") -> NO
A14: Kazakhstan | B14: KAZ | C14: 916 | D14: EXPOIL | E14: =IF(Codes[[#This Row],[Group]]="EXPOIL","YES","NO") -> YES
A15: Kuwait | B15: KWT | C15: 443 | D15: EXPOIL | E15: =IF(Codes[[#This Row],[Group]]="EXPOIL","YES","NO") -> YES
A16: Kyrgyz Republic | B16: KGZ | C16: 917 | D16: IMPOIL | E16: =IF(Codes[[#This Row],[Group]]="EXPOIL","YES","NO") -> NO
A17: Lebanon | B17: LBN | C17: 446 | D17: IMPOIL | E17: =IF(Codes[[#This Row],[Group]]="EXPOIL","YES","NO") -> NO
A18: Libya | B18: LBY | C18: 672 | D18: EXPOIL | E18: =IF(Codes[[#This Row],[Group]]="EXPOIL","YES","NO") -> YES
A19: Mauritania | B19: MRT | C19: 682 | D19: IMPOIL | E19: =IF(Codes[[#This Row],[Group]]="EXPOIL","YES","NO") -> NO
A20: Morocco | B20: MAR | C20: 686 | D20: IMPOIL | E20: =IF(Codes[[#This Row],[Group]]="EXPOIL","YES","NO") -> NO
A21: Oman | B21: OMN | C21: 449 | D21: EXPOIL | E21: =IF(Codes[[#This Row],[Group]]="EXPOIL","YES","NO") -> YES
A22: Pakistan | B22: PAK | C22: 564 | D22: IMPOIL | E22: =IF(Codes[[#This Row],[Group]]="EXPOIL","YES","NO") -> NO
A23: Qatar | B23: QAT | C23: 453 | D23: EXPOIL | E23: =IF(Codes[[#This Row],[Group]]="EXPOIL","YES","NO") -> YES
A24: Saudi Arabia | B24: SAU | C24: 456 | D24: EXPOIL | E24: =IF(Codes[[#This Row],[Group]]="EXPOIL","YES","NO") -> YES
A25: Sudan | B25: SDN | C25: 732 | D25: EXPOIL | E25: =IF(Codes[[#This Row],[Group]]="EXPOIL","YES","NO") -> YES
A26: Syria | B26: SYR | C26: 463 | D26: IMPOIL | E26: =IF(Codes[[#This Row],[Group]]="EXPOIL","YES","NO") -> NO
A27: Tajikistan | B27: TJK | C27: 923 | D27: IMPOIL | E27: =IF(Codes[[#This Row],[Group]]="EXPOIL","YES","NO") -> NO
A28: Tunisia | B28: TUN | C28: 744 | D28: IMPOIL | E28: =IF(Codes[[#This Row],[Group]]="EXPOIL","YES","NO") -> NO
A29: Turkmenistan | B29: TKM | C29: 925 | D29: EXPOIL | E29: =IF(Codes[[#This Row],[Group]]="EXPOIL","YES","NO") -> YES
A30: United Arab Emirates | B30: ARE | C30: 466 | D30: EXPOIL | E30: =IF(Codes[[#This Row],[Group]]="EXPOIL","YES","NO") -> YES
A31: Uzbekistan | B31: UZB | C31: 927 | D31: EXPOIL | E31: =IF(Codes[[#This Row],[Group]]="EXPOIL","YES","NO") -> YES
A32: West Bank and Gaza | B32: WBG | C32: 487 | D32: IMPOIL | E32: =IF(Codes[[#This Row],[Group]]="EXPOIL","YES","NO") -> NO
A33: Yemen | B33: YEM | C33: 474 | D33: EXPOIL | E33: =IF(Codes[[#This Row],[Group]]="EXPOIL","YES","NO") -> YES
A36: Multipliers
A37: Group | B37: Government Consumption | C37: Subsidies and Transfers | D37: Capital Expenditure | E37: Tax Revenue
A38: MCD | B38: 0.745699347 | C38: 0.4836585646 | D38: 1.076625883 | E38: -0.4337668111
A39: GCC | B39: 1.208875703 | C39: 0.7171949718 | D39: 1.364787588 | E39: -0.4337668111
A40: MENAP Oil Importers | B40: 1.018749457 | C40: 0.5647748566 | D40: 1.224944199 | E40: -0.4337668111
A41: MENAP Oil Exporters | B41: 0.6653414591 | C41: 0.4328892048 | D41: 0.9987140313 | E41: -0.4337668111
A42: ACTs | B42: 0.723817002 | C42: 0.4816280056 | D42: 1.224153334 | E42: -0.4337668111
A43: More Open to Trade | B43: 0.4114889909 | C43: 0.3233627017 | D43: 1.017826514 | E43: -0.4337668111
A44: Less Open to Trade | B44: 1.031975195 | C44: 0.4250103907 | D44: 1.214588871 | E44: -0.4337668111
A45: High Income | B45: 0.7739285891 | C45: 0.735648055 | D45: 1.088168963 | E45: -0.4337668111
A46: Low Income | B46: 0.8367359685 | C46: 0.5164350003 | D46: 1.112905854 | E46: -0.4337668111
A47: More Flexible Exchange Rate | B47: 0.3718245828 | C47: 0.2456059365 | D47: 0.5573447903 | E47: -0.4337668111
A48: Less Flexible Exchange Rate | B48: 1.088519732 | C48: 0.7135057968 | D48: 1.258350299 | E48: -0.4337668111
A51: Impulse Response Functions
A52: Descriptor | B52: Year 1 | C52: Year 2 | D52: Year 3 | E52: Year 4 | F52: Year 5
A53: GCC - Capital Expenditure | B53: 0.9932620782 | C53: 1.364787588 | D53: 1.20556237 | E53: 0.6672294876 | F53: 0.1895538317
A54: GCC - Subsidies and Transfers | B54: 0.2963615586 | C54: 0.5453052678 | D54: 0.7171949718 | E54: 0.622359273 | F54: 0.3378521768
A55: GCC - Government Consumption | B55: 0.1670803818 | C55: 0.943512744 | D55: 1.208875703 | E55: 0.8845431975 | F55: 0.39313031
A56: MCD - Capital Expenditure | B56: 0.6579380394 | C56: 1.076625883 | D56: 1.056688366 | E56: 0.7376881047 | F56: 0.4087190851
A57: MCD - Subsidies and Transfers | B57: 0.1302157674 | C57: 0.3534427972 | D57: 0.4836585646 | E57: 0.471257063 | F57: 0.3782458005
A58: MCD - Government Consumption | B58: 0.2626895427 | C58: 0.6185915037 | D58: 0.745699347 | E58: 0.6609607848 | F58: 0.4914836605
A59: MENAP Oil Importers - Government Consumption | B59: 0.6515258156 | C59: 0.9832116853 | D59: 1.018749457 | E59: 0.8765983701 | F59: 0.6396798917
A60: MENAP Oil Importers - Subsidies and Transfers | B60: 0.1824657229 | C60: 0.4518198853 | D60: 0.5647748566 | E60: 0.5647748566 | F60: 0.4518198853
A61: MENAP Oil Importers - Capital Expenditure | B61: 0.9269847995 | C61: 1.224944199 | D61: 1.009751299 | E61: 0.6455786996 | F61: 0.3310659998
A62: MENAP Oil Exporters - Capital Expenditure | B62: 0.5898445286 | C62: 0.9786056951 | D62: 0.9987140313 | E62: 0.6635750946 | F62: 0.3150306005
A63: MENAP Oil Exporters - Government Consumption | B63: 0.0480143321 | C63: 0.4458473695 | D63: 0.6653414591 | E63: 0.6447638882 | F63: 0.5144392725
A64: MENAP Oil Exporters - Subsidies and Transfers | B64: 0.09453902173 | C64: 0.3035200171 | D64: 0.4328892048 | E64: 0.4328892048 | F64: 0.368204611
A65: ACTs - Capital Expenditure | B65: 0.3766625642 | C65: 0.6277709404 | D65: 0.9887392311 | E65: 1.192764787 | F65: 1.224153334
A66: ACTs - Subsidies and Transfers | B66: 0.1187575904 | C66: 0.2309175369 | D66: 0.3232845517 | E66: 0.4288468543 | F66: 0.4750303617
A67: ACTs - Government Consumption | B67: 0.2613783618 | C67: 0.4423326123 | D67: 0.5830748072 | E67: 0.7137639881 | F67: 0.723817002
A68: High Income - Government Consumption | B68: 0.2479577033 | C68: 0.6912760213 | D68: 0.7739285891 | E68: 0.5635402348 | F68: 0.2855270523
A69: High Income - Subsidies and Transfers | B69: 0.4495627003 | C69: 0.735648055 | D69: 0.6947787186 | E69: 0.4845935601 | F69: 0.251054495
A70: High Income - Capital Expenditure | B70: 0.7566174822 | C70: 1.088168963 | D70: 0.9776518028 | E70: 0.5185805215 | F70: 0.09351452027
A71: Low Income - Capital Expenditure | B71: 0.819392222 | C71: 1.112905854 | D71: 1.063986915 | E71: 0.9172300992 | F71: 0.7460138141
A72: Low Income - Subsidies and Transfers | B72: 0.1362814584 | C72: 0.3012537502 | D72: 0.4231897919 | E72: 0.5164350003 | F72: 0.509262292
A73: Low Income - Government Consumption | B73: 0.4235330211 | C73: 0.6611247159 | D73: 0.7850856001 | E73: 0.8367359685 | F73: 0.7644254527
A74: More Open to Trade - Government Consumption | B74: 0.1015362445 | C74: 0.3473608365 | D74: 0.4114889909 | E74: 0.3740809008 | F74: 0.2778886692
A75: More Open to Trade - Subsidies and Transfers | B75: 0.07275660789 | C75: 0.2344379588 | D75: 0.3233627017 | E75: 0.3071945667 | F75: 0.2546481276
A76: More Open to Trade - Capital Expenditure | B76: 0.3168705185 | C76: 0.8929987339 | D76: 1.017826514 | E76: 0.8449880493 | F76: 0.5953324893
A77: Less Open to Trade - Capital Expenditure | B77: 1.113373132 | C77: 1.214588871 | D77: 0.8856377183 | E77: 0.5187306636 | F77: 0.2656913155
A78: Less Open to Trade - Government Consumption | B78: 0.323756924 | C78: 0.6475138481 | D78: 0.9712707721 | E78: 1.031975195 | F78: 0.8700967333
A79: Less Open to Trade - Subsidies and Transfers | B79: 0.08947587173 | C79: 0.3131655511 | D79: 0.4250103907 | E79: 0.4250103907 | F79: 0.3131655511
A80: Less Flexible Exchange Rate - Subsidies and Transfers | B80: 0.1870355001 | C80: 0.4571978892 | D80: 0.6857968338 | E80: 0.7135057968 | F80: 0.5611065004
A81: Less Flexible Exchange Rate - Capital Expenditure | B81: 0.5122487945 | C81: 1.035633432 | D81: 1.258350299 | E81: 1.069040962 | F81: 0.6570147581
A82: Less Flexible Exchange Rate - Government Consumption | B82: 0.3984759732 | C82: 0.8066708725 | D82: 1.088519732 | E82: 1.049644027 | F82: 0.7677951678
A83: More Flexible Exchange Rate - Government Consumption | B83: -0.1607890088 | C83: 0.211035574 | D83: 0.2914300784 | E83: 0.3718245828 | F83: 0.3718245828
A84: More Flexible Exchange Rate - Subsidies and Transfers | B84: -0.1078269965 | C84: 0.09584621913 | D84: 0.1797116609 | E84: 0.2336251591 | F84: 0.2456059365
A85: More Flexible Exchange Rate - Capital Expenditure | B85: 0.2114066446 | C85: 0.5573447903 | D85: 0.5477353974 | E85: 0.3747663245 | F85: 0.2402348234
A86: MCD - Tax Revenue | B86: -0.3892779074 | C86: -0.3114223259 | D86: -0.4337668111 | E86: -0.3003001 | F86: -0.1890778407
A87: MENAP Oil Importers - Tax Revenue | B87: -0.4416420856 | C87: -0.317430249 | D87: -0.717668389 | E87: -0.4278407704 | F87: -0.317430249

Sheet 1. Assumptions
B2: Basic Assumptions:
B4: Assumption: | C4: Inputs: | D4: Instructions:
B6: Country and Date:
B8: Country: | C8: Egypt | D8: Choose country from drop-down menu. Enter the first year of your projection period.
B9: Country Code: | C9: =VLOOKUP($C$8,Codes[#All],3,FALSE) -> 469
B10: Current Year: | C10: 2014
B12: Data:
B14: Real Baseline GDP: | C14: Potential GDP (HP Filter) | D14: GDP variable used to compute the fiscal impact of measures.
B15: Oil Exporter: | C15: =VLOOKUP(C8,Codes[#All],5,FALSE) -> NO | D15: Oil exporter updates automatically.
B17: Multiplier Assumptions:
B19: Country Group | C19: MCD | D19: Choose a country group.
B21: Persistence | C21: User-Defined | D21: Modify assumptions on the persistence of multipliers.
B23: Government Consumption | C23: Short Persistence (3 Years) | D23: Enter user-defined persistence options (this only applies if users select the "User-Defined" option in the previous step.
B24: Subsidies | C24: Short Persistence (3 Years)
B25: Capital | C25: Long Persistence (5 Years)
B26: Taxes | C26: Short Persistence (3 Years)
B30: Non-Cumulative Fiscal Measures in percent of GDP (in percent of Non-Hydrocarbon GDP for Oil Exporters)
D32: =Current_Year -> 2014 | E32: =D32+1 -> 2015 | F32: =E32+1 -> 2016 | G32: =F32+1 -> 2017 | H32: =G32+1 -> 2018 | I32: =H32+1 -> 2019
B34: Government Consumption (Wages, Purchase of Goods and Services, etc) | D34: 0 | E34: 0 | F34: 0 | G34: 0 | H34: 0 | I34: 0
B35: Subsidies | D35: 0 | E35: -1.5 | F35: -1 | G35: -0.5 | H35: 0 | I35: 0
B36: Capital Expenditure | D36: 0 | E36: 0 | F36: 0 | G36: 0 | H36: 0 | I36: 0
B37: Tax Revenue | D37: 0 | E37: 1 | F37: 1 | G37: 0.5 | H37: 0 | I37: 0
B39: Deficit Reducing Measures | D39: =(-D34)+(-D35)+(-D36)+(+D37) -> 0 | E39: 2.5 | F39: 2 | G39: 1 | H39: 0 | I39: 0

Sheet 2. Input_Data
A1: Refresh this page to update MCD REO data. | C1: EcDatabase | D1: Series_Code | E1: Country | F1: Indicator.Descriptor | G1: Indicator.Unit | H1: Scale | I1: =J1-1 -> 2000 | J1: 2001 | K1: 2002 | L1: 2003 | M1: 2004 | N1: 2005 | O1: 2006 | P1: 2007 | Q1: 2008 | R1: 2009 | S1: 2010 | T1: 2011 | U1: 2012 | V1: 2013 | W1: =Current_Year -> 2014 | X1: =W1+1 -> 2015 | Y1: =X1+1 -> 2016 | Z1: =Y1+1 -> 2017 | AA1: =Z1+1 -> 2018 | AB1: =AA1+1 -> 2019
A3: Fiscal Balance in Percent of GDP:
A5: Unadjusted Balance | B5: GGB_GDP.A | C5: \\MCD\REO\MCDREO | D5: =cc&B5 -> 469GGB_GDP.A | E5: Egypt | F5: Overall fiscal balance, Gen govt, percent of GDP | G5: Percent of GDP | H5: Units | I5: -1.223903056 | J5: -2.235294118 | K5: -11.34733439 | L5: -9.024313772 | M5: -8.253579229 | N5: -8.406496174 | O5: -9.180706043 | P5: -7.54743609 | Q5: -8.0040134 | R5: -6.89620655 | S5: -8.284078402 | T5: -9.784027936 | U5: -10.51633469 | V5: -14.18960246 | W5: -12.42185007 | X5: -13.26544726 | Y5: -13.6793701 | Z5: -14.26052096 | AA5: -14.11867836 | AB5: -12.85250184
A6: Balance Including Measures | W6: =W5+'1. Assumptions'!D39 -> -12.42185007 | X6: =X5+'1. Assumptions'!E39 -> -10.76544726 | Y6: =Y5+'1. Assumptions'!F39 -> -11.6793701 | Z6: =Z5+'1. Assumptions'!G39 -> -13.26052096 | AA6: =AA5+'1. Assumptions'!H39 -> -14.11867836 | AB6: =AB5+'1. Assumptions'!I39 -> -12.85250184
A8: Baseline Assumptions:
A10: Real GDP | B10: =IF(Oil_X="YES","NGDPXO_R.A","NGDP_R.A") -> NGDP_R.A | C10: \\MCD\REO\MCDREO | D10: =cc&B10 -> 469NGDP_R.A | E10: Egypt | F10: Gross domestic product, constant prices, market prices | G10: National currency | H10: Billions | I10: 354.7026937 | J10: 367.202724 | K10: 378.9 | L10: 391 | M10: 407 | N10: 425.2 | O10: 454.3 | P10: 486.5 | Q10: 521.3153195 | R10: 545.6795113 | S10: 573.7669173 | T10: 583.9567669 | U10: 596.8900376 | V10: 609.4124674 | W10: 628.4830637 | X10: 655.0868122 | Y10: 682.1234468 | Z10: 709.2561842 | AA10: 737.8032733 | AB10: 767.4727877
A11: Nominal GDP | B11: =IF(Oil_X="YES","NGDPXO.A","NGDP.A") -> NGDP.A | C11: \\MCD\REO\MCDREO | D11: =cc&B11 -> 469NGDP.A | E11: Egypt | F11: Gross domestic product, current prices, market prices | G11: National currency | H11: Billions | I11: 340.1 | J11: 358.7 | K11: 378.9 | L11: 417.5 | M11: 485.3 | N11: 538.5 | O11: 617.7 | P11: 744.8 | Q11: 895.5 | R11: 1042.2 | S11: 1206.6 | T11: 1371 | U11: 1575.5459 | V11: 1753.3 | W11: 1991.452967 | X11: 2276.657753 | Y11: 2621.398963 | Z11: 3024.227839 | AA11: 3494.413434 | AB11: 4045.683075
A12: REO Potential Real GDP | B12: =IF(Oil_X="YES","NPGDPXO_R.A","NPGDP_R.A") -> NPGDP_R.A | C12: \\MCD\REO\MCDREO | D12: =cc&B12 -> 469NPGDP_R.A | E12: Egypt | F12: Potential real gross domestic product, constant prices in national currency | G12: Billions of national currency | H12: Billions | I12: . | J12: . | K12: . | L12: . | M12: . | N12: . | O12: . | P12: 484.223144 | Q12: 513.549669 | R12: 543.3913569 | S12: 574.968085 | T12: 593.292929 | U12: 610.4203489 | V12: 626.2150662 | W12: 642.2107475 | X12: 661.2194618 | Y12: 683.3329686 | Z12: 708.9521704 | AA12: 737.6576972 | AB12: 767.4590829
A14: Baseline GDP | I14: =TRANSPOSE('3. Potential'!$H$10:$H$29) -> 
A16: Real GDP Growth | I16: =IFERROR(100*((I10-H10)/H10),".") -> . | J16: 3.524086647 | K16: 3.185509057 | L16: 3.193454737 | M16: 4.092071611 | N16: 4.471744472 | O16: 6.843838194 | P16: 7.087827427 | Q16: 7.156283566 | R16: 4.6735998 | S16: 5.147234858 | T16: 1.775956284 | U16: 2.214765101 | V16: 2.097945861 | W16: 3.129341346 | X16: 4.233009611 | Y16: 4.127183455 | Z16: 3.977687264 | AA16: 4.024933403 | AB16: 4.021331357
A17: Baseline Growth | I17: =IFERROR(100*((I14-H14)/H14),".") -> . | J17: . | K17: . | L17: . | M17: . | N17: . | O17: . | P17: . | Q17: . | R17: . | S17: . | T17: . | U17: =IFERROR(100*((U14-T14)/T14),".") -> . | V17: . | W17: . | X17: . | Y17: . | Z17: . | AA17: . | AB17: .
A19: Fiscal Measures in National Currency:
A21: Government Consumption (Wages, Goods and Services) | W21: =IFERROR(('1. Assumptions'!D34/100)*W$11,".") -> 0 | X21: =IFERROR(('1. Assumptions'!E34/100)*X$11,".") -> 0 | Y21: =IFERROR(('1. Assumptions'!F34/100)*Y$11,".") -> 0 | Z21: =IFERROR(('1. Assumptions'!G34/100)*Z$11,".") -> 0 | AA21: =IFERROR(('1. Assumptions'!H34/100)*AA$11,".") -> 0 | AB21: =IFERROR(('1. Assumptions'!I34/100)*AB$11,".") -> 0
A22: Subsidies | W22: =IFERROR(('1. Assumptions'!D35/100)*W$11,".") -> 0 | X22: =IFERROR(('1. Assumptions'!E35/100)*X$11,".") -> -34.14986629 | Y22: =IFERROR(('1. Assumptions'!F35/100)*Y$11,".") -> -26.21398963 | Z22: =IFERROR(('1. Assumptions'!G35/100)*Z$11,".") -> -15.1211392 | AA22: =IFERROR(('1. Assumptions'!H35/100)*AA$11,".") -> 0 | AB22: =IFERROR(('1. Assumptions'!I35/100)*AB$11,".") -> 0
A23: Capital Expenditure | W23: =IFERROR(('1. Assumptions'!D36/100)*W$11,".") -> 0 | X23: =IFERROR(('1. Assumptions'!E36/100)*X$11,".") -> 0 | Y23: =IFERROR(('1. Assumptions'!F36/100)*Y$11,".") -> 0 | Z23: =IFERROR(('1. Assumptions'!G36/100)*Z$11,".") -> 0 | AA23: =IFERROR(('1. Assumptions'!H36/100)*AA$11,".") -> 0 | AB23: =IFERROR(('1. Assumptions'!I36/100)*AB$11,".") -> 0
A24: Tax Revenue | W24: =IFERROR(('1. Assumptions'!D37/100)*W$11,".") -> 0 | X24: =IFERROR(('1. Assumptions'!E37/100)*X$11,".") -> 22.76657753 | Y24: =IFERROR(('1. Assumptions'!F37/100)*Y$11,".") -> 26.21398963 | Z24: =IFERROR(('1. Assumptions'!G37/100)*Z$11,".") -> 15.1211392 | AA24: =IFERROR(('1. Assumptions'!H37/100)*AA$11,".") -> 0 | AB24: =IFERROR(('1. Assumptions'!I37/100)*AB$11,".") -> 0
A26: Fiscal Measures in Real National Currency (Deflated by GDP Deflator):
A28: Government Consumption (Wages, Goods and Services) | W28: =IFERROR(W21*(W$10/W$11),".") -> 0 | X28: 0 | Y28: 0 | Z28: 0 | AA28: 0 | AB28: 0
A29: Subsidies | W29: 0 | X29: -9.826302184 | Y29: -6.821234468 | Z29: -3.546280921 | AA29: 0 | AB29: 0
A30: Capital Expenditure | W30: 0 | X30: 0 | Y30: 0 | Z30: 0 | AA30: 0 | AB30: 0
A31: Tax Revenue | W31: 0 | X31: 6.550868122 | Y31: 6.821234468 | Z31: 3.546280921 | AA31: 0 | AB31: 0

Sheet 3. Potential
B1: Real GDP | C1: Potential GDP (HP Filter) | D1: Potential GDP (MCD REO) | E1: Own (Enter on Sheet 3)
B3: Real GDP | C3: Real Potential GDP * | D3: MCD REO | E3: Desk Input (OWN Baseline GDP) | G3: For Use in Analysis:
A7: Indicator.Descriptor | B7: Gross domestic product, constant prices, market prices
A8: Indicator.Unit | B8: National currency
A9: Scale | B9: Billions
A10: =A11-1 -> 2000 | B10: =TRANSPOSE('2. Input_Data'!$I$10:$AB$10) -> 354.7026937 | C10: =[7]!hp($B$10:$B$29,100) ->  | D10: =TRANSPOSE('2. Input_Data'!$I$12:$AB$12) -> . | E10: =C10 ->  | G10: =A10 -> 2000 | H10: =HLOOKUP('1. Assumptions'!$C$14,'3. Potential'!$A$1:$E$29,MATCH(G10,'3. Potential'!$A$1:$A$29,0),FALSE) -> 
A11: 2001 | B11: 367.202724 | D11: . | E11: =C11 ->  | G11: =A11 -> 2001 | H11: =HLOOKUP('1. Assumptions'!$C$14,'3. Potential'!$A$1:$E$29,MATCH(G11,'3. Potential'!$A$1:$A$29,0),FALSE) -> 
A12: 2002 | B12: 378.9 | D12: . | G12: 2002 | H12: =HLOOKUP('1. Assumptions'!$C$14,'3. Potential'!$A$1:$E$29,MATCH(G12,'3. Potential'!$A$1:$A$29,0),FALSE) -> 
A13: 2003 | B13: 391 | D13: . | G13: 2003 | H13: =HLOOKUP('1. Assumptions'!$C$14,'3. Potential'!$A$1:$E$29,MATCH(G13,'3. Potential'!$A$1:$A$29,0),FALSE) -> 
A14: 2004 | B14: 407 | D14: . | G14: 2004 | H14: =HLOOKUP('1. Assumptions'!$C$14,'3. Potential'!$A$1:$E$29,MATCH(G14,'3. Potential'!$A$1:$A$29,0),FALSE) -> 
A15: 2005 | B15: 425.2 | D15: . | G15: 2005 | H15: =HLOOKUP('1. Assumptions'!$C$14,'3. Potential'!$A$1:$E$29,MATCH(G15,'3. Potential'!$A$1:$A$29,0),FALSE) -> 
A16: 2006 | B16: 454.3 | D16: . | G16: 2006 | H16: =HLOOKUP('1. Assumptions'!$C$14,'3. Potential'!$A$1:$E$29,MATCH(G16,'3. Potential'!$A$1:$A$29,0),FALSE) -> 
A17: 2007 | B17: 486.5 | D17: 484.223144 | G17: 2007 | H17: =HLOOKUP('1. Assumptions'!$C$14,'3. Potential'!$A$1:$E$29,MATCH(G17,'3. Potential'!$A$1:$A$29,0),FALSE) -> 
A18: 2008 | B18: 521.3153195 | D18: 513.549669 | G18: 2008 | H18: =HLOOKUP('1. Assumptions'!$C$14,'3. Potential'!$A$1:$E$29,MATCH(G18,'3. Potential'!$A$1:$A$29,0),FALSE) -> 
A19: 2009 | B19: 545.6795113 | D19: 543.3913569 | G19: 2009 | H19: =HLOOKUP('1. Assumptions'!$C$14,'3. Potential'!$A$1:$E$29,MATCH(G19,'3. Potential'!$A$1:$A$29,0),FALSE) -> 
A20: 2010 | B20: 573.7669173 | D20: 574.968085 | G20: 2010 | H20: =HLOOKUP('1. Assumptions'!$C$14,'3. Potential'!$A$1:$E$29,MATCH(G20,'3. Potential'!$A$1:$A$29,0),FALSE) -> 
A21: 2011 | B21: 583.9567669 | D21: 593.292929 | G21: 2011 | H21: =HLOOKUP('1. Assumptions'!$C$14,'3. Potential'!$A$1:$E$29,MATCH(G21,'3. Potential'!$A$1:$A$29,0),FALSE) -> 
A22: 2012 | B22: 596.8900376 | D22: 610.4203489 | G22: 2012 | H22: =HLOOKUP('1. Assumptions'!$C$14,'3. Potential'!$A$1:$E$29,MATCH(G22,'3. Potential'!$A$1:$A$29,0),FALSE) -> 
A23: 2013 | B23: 609.4124674 | D23: 626.2150662 | G23: 2013 | H23: =HLOOKUP('1. Assumptions'!$C$14,'3. Potential'!$A$1:$E$29,MATCH(G23,'3. Potential'!$A$1:$A$29,0),FALSE) -> 
A24: =Current_Year -> 2014 | B24: 628.4830637 | D24: 642.2107475 | G24: 2014 | H24: =HLOOKUP('1. Assumptions'!$C$14,'3. Potential'!$A$1:$E$29,MATCH(G24,'3. Potential'!$A$1:$A$29,0),FALSE) -> 
A25: =A24+1 -> 2015 | B25: 655.0868122 | D25: 661.2194618 | G25: 2015 | H25: =HLOOKUP('1. Assumptions'!$C$14,'3. Potential'!$A$1:$E$29,MATCH(G25,'3. Potential'!$A$1:$A$29,0),FALSE) -> 
A26: =A25+1 -> 2016 | B26: 682.1234468 | D26: 683.3329686 | G26: 2016 | H26: =HLOOKUP('1. Assumptions'!$C$14,'3. Potential'!$A$1:$E$29,MATCH(G26,'3. Potential'!$A$1:$A$29,0),FALSE) -> 
A27: =A26+1 -> 2017 | B27: 709.2561842 | D27: 708.9521704 | G27: 2017 | H27: =HLOOKUP('1. Assumptions'!$C$14,'3. Potential'!$A$1:$E$29,MATCH(G27,'3. Potential'!$A$1:$A$29,0),FALSE) -> 
A28: =A27+1 -> 2018 | B28: 737.8032733 | D28: 737.6576972 | G28: 2018 | H28: =HLOOKUP('1. Assumptions'!$C$14,'3. Potential'!$A$1:$E$29,MATCH(G28,'3. Potential'!$A$1:$A$29,0),FALSE) -> 
A29: =A28+1 -> 2019 | B29: 767.4727877 | D29: 767.4590829 | G29: 2019 | H29: =HLOOKUP('1. Assumptions'!$C$14,'3. Potential'!$A$1:$E$29,MATCH(G29,'3. Potential'!$A$1:$A$29,0),FALSE) -> 
A31: *Instructions for using the HP filter to calculate baseline GDP:
A32: 1. Copy the HPfilter add in (http://www.web-reg.de/hp_addin.html) to your C drive: C:\Users\username\My Local documents\Hpfilter\
A33: 2. Check that the add-in is included and activated in Excel by first navigating to excel options and then to the add-ins tab. Select "Excel Add-ins" from the drop down menu at the bottom of the screen and click "Go…". Browse for the add-in in the folder from step 1. Finally, make sure that the add-in is enabled in excel.
A35: 3. To recalculate the array, first select cells C10:C29 and press delete. Enter =hp($B$10:$B$29,100) in C10 and drag the formula through cell C29. Then select cell C10:C29 again and press F2. Finally, press Ctrl+Shift+Enter to recalculate the array.

Sheet 4. Multipliers
A1: ="Multipliers for "&'1. Assumptions'!C19&" Country Group" -> Multipliers for MCD Country Group
C4: This section displays panel estimated dynamic multipliers over a five year period.
E7: Year 1 | F7: Year 2 | G7: Year 3 | H7: Year 4 | I7: Year 5
D8: Government Consumption | E8: =VLOOKUP('1. Assumptions'!$C$19&" - "&'4. Multipliers'!$D8,Characteristics!$A$52:$F$87,MATCH('4. Multipliers'!E$7,Characteristics!$A$52:$F$52,0),FALSE) -> 0.2626895427 | F8: =VLOOKUP('1. Assumptions'!$C$19&" - "&'4. Multipliers'!$D8,Characteristics!$A$52:$F$87,MATCH('4. Multipliers'!F$7,Characteristics!$A$52:$F$52,0),FALSE) -> 0.6185915037 | G8: =VLOOKUP('1. Assumptions'!$C$19&" - "&'4. Multipliers'!$D8,Characteristics!$A$52:$F$87,MATCH('4. Multipliers'!G$7,Characteristics!$A$52:$F$52,0),FALSE) -> 0.745699347 | H8: =VLOOKUP('1. Assumptions'!$C$19&" - "&'4. Multipliers'!$D8,Characteristics!$A$52:$F$87,MATCH('4. Multipliers'!H$7,Characteristics!$A$52:$F$52,0),FALSE) -> 0.6609607848 | I8: =VLOOKUP('1. Assumptions'!$C$19&" - "&'4. Multipliers'!$D8,Characteristics!$A$52:$F$87,MATCH('4. Multipliers'!I$7,Characteristics!$A$52:$F$52,0),FALSE) -> 0.4914836605
D9: Subsidies and Transfers | E9: =VLOOKUP('1. Assumptions'!$C$19&" - "&'4. Multipliers'!$D9,Characteristics!$A$52:$F$87,MATCH('4. Multipliers'!E$7,Characteristics!$A$52:$F$52,0),FALSE) -> 0.1302157674 | F9: =VLOOKUP('1. Assumptions'!$C$19&" - "&'4. Multipliers'!$D9,Characteristics!$A$52:$F$87,MATCH('4. Multipliers'!F$7,Characteristics!$A$52:$F$52,0),FALSE) -> 0.3534427972 | G9: =VLOOKUP('1. Assumptions'!$C$19&" - "&'4. Multipliers'!$D9,Characteristics!$A$52:$F$87,MATCH('4. Multipliers'!G$7,Characteristics!$A$52:$F$52,0),FALSE) -> 0.4836585646 | H9: =VLOOKUP('1. Assumptions'!$C$19&" - "&'4. Multipliers'!$D9,Characteristics!$A$52:$F$87,MATCH('4. Multipliers'!H$7,Characteristics!$A$52:$F$52,0),FALSE) -> 0.471257063 | I9: =VLOOKUP('1. Assumptions'!$C$19&" - "&'4. Multipliers'!$D9,Characteristics!$A$52:$F$87,MATCH('4. Multipliers'!I$7,Characteristics!$A$52:$F$52,0),FALSE) -> 0.3782458005
D10: Capital Expenditure | E10: =VLOOKUP('1. Assumptions'!$C$19&" - "&'4. Multipliers'!$D10,Characteristics!$A$52:$F$87,MATCH('4. Multipliers'!E$7,Characteristics!$A$52:$F$52,0),FALSE) -> 0.6579380394 | F10: =VLOOKUP('1. Assumptions'!$C$19&" - "&'4. Multipliers'!$D10,Characteristics!$A$52:$F$87,MATCH('4. Multipliers'!F$7,Characteristics!$A$52:$F$52,0),FALSE) -> 1.076625883 | G10: =VLOOKUP('1. Assumptions'!$C$19&" - "&'4. Multipliers'!$D10,Characteristics!$A$52:$F$87,MATCH('4. Multipliers'!G$7,Characteristics!$A$52:$F$52,0),FALSE) -> 1.056688366 | H10: =VLOOKUP('1. Assumptions'!$C$19&" - "&'4. Multipliers'!$D10,Characteristics!$A$52:$F$87,MATCH('4. Multipliers'!H$7,Characteristics!$A$52:$F$52,0),FALSE) -> 0.7376881047 | I10: =VLOOKUP('1. Assumptions'!$C$19&" - "&'4. Multipliers'!$D10,Characteristics!$A$52:$F$87,MATCH('4. Multipliers'!I$7,Characteristics!$A$52:$F$52,0),FALSE) -> 0.4087190851
D11: Tax Revenue | E11: =Characteristics!B86 -> -0.3892779074 | F11: =Characteristics!C86 -> -0.3114223259 | G11: =Characteristics!D86 -> -0.4337668111 | H11: =Characteristics!E86 -> -0.3003001 | I11: =Characteristics!F86 -> -0.1890778407
C16: This section computes the multipliers given user-defined persistence.
D18: ="Maximum Cumulative Multipliers " -> Maximum Cumulative Multipliers
D21: Government Consumption | E21: =VLOOKUP('1. Assumptions'!$C$19,Multipliers[#All],MATCH('4. Multipliers'!$D21,Multipliers[#Headers],0),FALSE) -> 0.745699347
D22: Subsidies and Transfers | E22: =VLOOKUP('1. Assumptions'!$C$19,Multipliers[#All],MATCH('4. Multipliers'!$D22,Multipliers[#Headers],0),FALSE) -> 0.4836585646
D23: Capital Expenditure | E23: =VLOOKUP('1. Assumptions'!$C$19,Multipliers[#All],MATCH('4. Multipliers'!$D23,Multipliers[#Headers],0),FALSE) -> 1.076625883
D24: Tax Revenue | E24: =VLOOKUP('1. Assumptions'!$C$19,Multipliers[#All],MATCH('4. Multipliers'!$D24,Multipliers[#Headers],0),FALSE) -> -0.4337668111
D27: Persistence Assumptions
E30: No Persistence | F30: Short Persistence (3 Years) | G30: Long Persistence (5 Years) | H30: Permanent
D31: Government Consumption | E31: =IF('1. Assumptions'!C23="No Persistence",1,0) -> 0 | F31: =IF('1. Assumptions'!C23="Short Persistence (3 Years)",1,0) -> 1 | G31: =IF('1. Assumptions'!C23="Long Persistence (5 Years)",1,0) -> 0 | H31: =IF('1. Assumptions'!C23="Permanent",1,0) -> 0
D32: Subsidies and Transfers | E32: =IF('1. Assumptions'!C24="No Persistence",1,0) -> 0 | F32: =IF('1. Assumptions'!C24="Short Persistence (3 Years)",1,0) -> 1 | G32: =IF('1. Assumptions'!C24="Long Persistence (5 Years)",1,0) -> 0 | H32: =IF('1. Assumptions'!C24="Permanent",1,0) -> 0
D33: Capital Expenditure | E33: =IF('1. Assumptions'!C25="No Persistence",1,0) -> 0 | F33: =IF('1. Assumptions'!C25="Short Persistence (3 Years)",1,0) -> 0 | G33: =IF('1. Assumptions'!C25="Long Persistence (5 Years)",1,0) -> 1 | H33: =IF('1. Assumptions'!C25="Permanent",1,0) -> 0
D34: Tax Revenue | E34: =IF('1. Assumptions'!C26="No Persistence",1,0) -> 0 | F34: =IF('1. Assumptions'!C26="Short Persistence (3 Years)",1,0) -> 1 | G34: =IF('1. Assumptions'!C26="Long Persistence (5 Years)",1,0) -> 0 | H34: =IF('1. Assumptions'!C26="Permanent",1,0) -> 0
D37: Multiplier path persistence assumption
D38: Note: relevant multiplier is premultiplied by this in each year
E41: Year 1 | F41: Year 2 | G41: Year 3 | H41: Year 4 | I41: Year 5
D42: 1. No Persistence (Initial effect only) | E42: 1 | F42: 0 | G42: 0 | H42: 0 | I42: 0
D43: 2. Short persistence (3 years) | E43: 0.8 | F43: 1 | G43: 0.5 | H43: 0 | I43: 0
D44: 3. Long persistence (5 years) | E44: 0.8 | F44: 1 | G44: 0.6 | H44: 0.3 | I44: 0
D45: 4. Permanent | E45: 0.8 | F45: 1 | G45: =F45-($F$45-$I$45)/3 -> 0.7333333333 | H45: =G45-($F$45-$I$45)/3 -> 0.4666666667 | I45: 0.2
D48: Cumulative multipliers given assumptions
E51: Year 1 | F51: Year 2 | G51: Year 3 | H51: Year 4 | I51: Year 5
D52: Government Consumption | E52: =$E$21*($E$31*E$42+$F$31*E$43+$G$31*E$44+$H$31*E$45) -> 0.5965594776 | F52: =$E$21*($E$31*F$42+$F$31*F$43+$G$31*F$44+$H$31*F$45) -> 0.745699347 | G52: =$E$21*($E$31*G$42+$F$31*G$43+$G$31*G$44+$H$31*G$45) -> 0.3728496735 | H52: =$E$21*($E$31*H$42+$F$31*H$43+$G$31*H$44+$H$31*H$45) -> 0 | I52: =$E$21*($E$31*I$42+$F$31*I$43+$G$31*I$44+$H$31*I$45) -> 0
D53: Subsidies and Transfers | E53: =$E$22*($E$32*E$42+$F$32*E$43+$G$32*E$44+$H$32*E$45) -> 0.3869268517 | F53: =$E$22*($E$32*F$42+$F$32*F$43+$G$32*F$44+$H$32*F$45) -> 0.4836585646 | G53: =$E$22*($E$32*G$42+$F$32*G$43+$G$32*G$44+$H$32*G$45) -> 0.2418292823 | H53: =$E$22*($E$32*H$42+$F$32*H$43+$G$32*H$44+$H$32*H$45) -> 0 | I53: =$E$22*($E$32*I$42+$F$32*I$43+$G$32*I$44+$H$32*I$45) -> 0
D54: Capital Expenditure | E54: =$E$23*($E$33*E$42+$F$33*E$43+$G$33*E$44+$H$33*E$45) -> 0.8613007061 | F54: =$E$23*($E$33*F$42+$F$33*F$43+$G$33*F$44+$H$33*F$45) -> 1.076625883 | G54: =$E$23*($E$33*G$42+$F$33*G$43+$G$33*G$44+$H$33*G$45) -> 0.6459755296 | H54: =$E$23*($E$33*H$42+$F$33*H$43+$G$33*H$44+$H$33*H$45) -> 0.3229877648 | I54: =$E$23*($E$33*I$42+$F$33*I$43+$G$33*I$44+$H$33*I$45) -> 0
D55: Tax Revenue | E55: =$E$24*($E$34*E$42+$F$34*E$43+$G$34*E$44+$H$34*E$45) -> -0.3470134489 | F55: =$E$24*($E$34*F$42+$F$34*F$43+$G$34*F$44+$H$34*F$45) -> -0.4337668111 | G55: =$E$24*($E$34*G$42+$F$34*G$43+$G$34*G$44+$H$34*G$45) -> -0.2168834055 | H55: =$E$24*($E$34*H$42+$F$34*H$43+$G$34*H$44+$H$34*H$45) -> 0 | I55: =$E$24*($E$34*I$42+$F$34*I$43+$G$34*I$44+$H$34*I$45) -> 0

Sheet 5. Impact
B2: Impact on Output of Fiscal Measures
C4: Multipliers:
D6: Year 1 | E6: Year 2 | F6: Year 3 | G6: Year 4 | H6: Year 5
C7: Government Consumption | D7: =IF('1. Assumptions'!$C$21="Panel Model Estimated",'4. Multipliers'!E8,'4. Multipliers'!E52) -> 0.5965594776 | E7: =IF('1. Assumptions'!$C$21="Panel Model Estimated",'4. Multipliers'!F8,'4. Multipliers'!F52) -> 0.745699347 | F7: =IF('1. Assumptions'!$C$21="Panel Model Estimated",'4. Multipliers'!G8,'4. Multipliers'!G52) -> 0.3728496735 | G7: =IF('1. Assumptions'!$C$21="Panel Model Estimated",'4. Multipliers'!H8,'4. Multipliers'!H52) -> 0 | H7: =IF('1. Assumptions'!$C$21="Panel Model Estimated",'4. Multipliers'!I8,'4. Multipliers'!I52) -> 0
C8: Subsidies | D8: =IF('1. Assumptions'!$C$21="Panel Model Estimated",'4. Multipliers'!E9,'4. Multipliers'!E53) -> 0.3869268517 | E8: =IF('1. Assumptions'!$C$21="Panel Model Estimated",'4. Multipliers'!F9,'4. Multipliers'!F53) -> 0.4836585646 | F8: =IF('1. Assumptions'!$C$21="Panel Model Estimated",'4. Multipliers'!G9,'4. Multipliers'!G53) -> 0.2418292823 | G8: =IF('1. Assumptions'!$C$21="Panel Model Estimated",'4. Multipliers'!H9,'4. Multipliers'!H53) -> 0 | H8: =IF('1. Assumptions'!$C$21="Panel Model Estimated",'4. Multipliers'!I9,'4. Multipliers'!I53) -> 0
C9: Capital Expenditure | D9: =IF('1. Assumptions'!$C$21="Panel Model Estimated",'4. Multipliers'!E10,'4. Multipliers'!E54) -> 0.8613007061 | E9: =IF('1. Assumptions'!$C$21="Panel Model Estimated",'4. Multipliers'!F10,'4. Multipliers'!F54) -> 1.076625883 | F9: =IF('1. Assumptions'!$C$21="Panel Model Estimated",'4. Multipliers'!G10,'4. Multipliers'!G54) -> 0.6459755296 | G9: =IF('1. Assumptions'!$C$21="Panel Model Estimated",'4. Multipliers'!H10,'4. Multipliers'!H54) -> 0.3229877648 | H9: =IF('1. Assumptions'!$C$21="Panel Model Estimated",'4. Multipliers'!I10,'4. Multipliers'!I54) -> 0
C10: Tax Revenue | D10: =IF('1. Assumptions'!$C$21="Panel Model Estimated",'4. Multipliers'!E11,'4. Multipliers'!E55) -> -0.3470134489 | E10: =IF('1. Assumptions'!$C$21="Panel Model Estimated",'4. Multipliers'!F11,'4. Multipliers'!F55) -> -0.4337668111 | F10: =IF('1. Assumptions'!$C$21="Panel Model Estimated",'4. Multipliers'!G11,'4. Multipliers'!G55) -> -0.2168834055 | G10: =IF('1. Assumptions'!$C$21="Panel Model Estimated",'4. Multipliers'!H11,'4. Multipliers'!H55) -> 0 | H10: =IF('1. Assumptions'!$C$21="Panel Model Estimated",'4. Multipliers'!I11,'4. Multipliers'!I55) -> 0
C13: Fiscal Measures:
D15: =Current_Year -> 2014 | E15: =D15+1 -> 2015 | F15: =E15+1 -> 2016 | G15: =F15+1 -> 2017 | H15: =G15+1 -> 2018 | I15: =H15+1 -> 2019
C16: Government Consumption | D16: ='2. Input_Data'!W28 -> 0 | E16: ='2. Input_Data'!X28 -> 0 | F16: ='2. Input_Data'!Y28 -> 0 | G16: ='2. Input_Data'!Z28 -> 0 | H16: ='2. Input_Data'!AA28 -> 0 | I16: ='2. Input_Data'!AB28 -> 0
C17: Subsidies | D17: ='2. Input_Data'!W29 -> 0 | E17: ='2. Input_Data'!X29 -> -9.826302184 | F17: ='2. Input_Data'!Y29 -> -6.821234468 | G17: ='2. Input_Data'!Z29 -> -3.546280921 | H17: ='2. Input_Data'!AA29 -> 0 | I17: ='2. Input_Data'!AB29 -> 0
C18: Capital Expenditure | D18: ='2. Input_Data'!W30 -> 0 | E18: ='2. Input_Data'!X30 -> 0 | F18: ='2. Input_Data'!Y30 -> 0 | G18: ='2. Input_Data'!Z30 -> 0 | H18: ='2. Input_Data'!AA30 -> 0 | I18: ='2. Input_Data'!AB30 -> 0
C19: Tax Revenue | D19: ='2. Input_Data'!W31 -> 0 | E19: ='2. Input_Data'!X31 -> 6.550868122 | F19: ='2. Input_Data'!Y31 -> 6.821234468 | G19: ='2. Input_Data'!Z31 -> 3.546280921 | H19: ='2. Input_Data'!AA31 -> 0 | I19: ='2. Input_Data'!AB31 -> 0
C24: Real Output Effects (Levels): | D24: =D15 -> 2014 | E24: =E15 -> 2015 | F24: 2016 | G24: 2017 | H24: 2018 | I24: 2019
C26: Government Consumption
C27: Year 1 | D27: =$D$16*D$7 -> 0 | E27: =$E$16*D$7 -> 0 | F27: =$F$16*D$7 -> 0 | G27: =$G$16*D$7 -> 0 | H27: =$H$16*D$7 -> 0 | I27: =$I$16*D$7 -> 0
C28: Year 2 | E28: =$D$16*E$7 -> 0 | F28: =$E$16*E$7 -> 0 | G28: =$F$16*E$7 -> 0 | H28: =$G$16*E$7 -> 0 | I28: =$H$16*E$7 -> 0
C29: Year 3 | F29: =$D$16*F$7 -> 0 | G29: =$E$16*F$7 -> 0 | H29: =$F$16*F$7 -> 0 | I29: =$G$16*F$7 -> 0
C30: Year 4 | G30: =$D$16*G$7 -> 0 | H30: =$E$16*G$7 -> 0 | I30: =$F$16*G$7 -> 0
C31: Year 5 | H31: =$D$16*H$7 -> 0 | I31: =$E$16*H$7 -> 0
C33: Subsidies
C34: Year 1 | D34: =$D$17*D$8 -> 0 | E34: =$E$17*D$8 -> -3.802060168 | F34: =$F$17*D$8 -> -2.639318777 | G34: =$G$17*D$8 -> -1.372151312 | H34: =$H$17*D$8 -> 0 | I34: =$I$17*D$8 -> 0
C35: Year 2 | E35: =$D$17*E$8 -> 0 | F35: =$E$17*E$8 -> -4.75257521 | G35: =$F$17*E$8 -> -3.299148472 | H35: =$G$17*E$8 -> -1.71518914 | I35: =$H$17*E$8 -> 0
C36: Year 3 | F36: =$D$17*F$8 -> 0 | G36: =$E$17*F$8 -> -2.376287605 | H36: =$F$17*F$8 -> -1.649574236 | I36: =$G$17*F$8 -> -0.85759457
C37: Year 4 | G37: =$D$17*G$8 -> 0 | H37: =$E$17*G$8 -> 0 | I37: =$F$17*G$8 -> 0
C38: Year 5 | H38: =$D$17*H$8 -> 0 | I38: =$E$17*H$8 -> 0
C40: Capital Expenditure
C41: Year 1 | D41: =$D$18*D$9 -> 0 | E41: =$E$18*D$9 -> 0 | F41: =$F$18*D$9 -> 0 | G41: =$G$18*D$9 -> 0 | H41: =$H$18*D$9 -> 0 | I41: =$I$18*D$9 -> 0
C42: Year 2 | E42: =$D$18*E$9 -> 0 | F42: =$E$18*E$9 -> 0 | G42: =$F$18*E$9 -> 0 | H42: =$G$18*E$9 -> 0 | I42: =$H$18*E$9 -> 0
C43: Year 3 | F43: =$D$18*F$9 -> 0 | G43: =$E$18*F$9 -> 0 | H43: =$F$18*F$9 -> 0 | I43: =$G$18*F$9 -> 0
C44: Year 4 | G44: =$D$18*G$9 -> 0 | H44: =$E$18*G$9 -> 0 | I44: =$F$18*G$9 -> 0
C45: Year 5 | H45: =$D$18*H$9 -> 0 | I45: =$E$18*H$9 -> 0
C47: Tax Revenue
C48: Year 1 | D48: =$D$19*D$10 -> 0 | E48: =$E$19*D$10 -> -2.27323934 | F48: =$F$19*D$10 -> -2.367060098 | G48: =$G$19*D$10 -> -1.230607173 | H48: =$H$19*D$10 -> 0 | I48: =$I$19*D$10 -> 0
C49: Year 2 | E49: =$D$19*E$10 -> 0 | F49: =$E$19*E$10 -> -2.841549175 | G49: =$F$19*E$10 -> -2.958825123 | H49: =$G$19*E$10 -> -1.538258966 | I49: =$H$19*E$10 -> 0
C50: Year 3 | F50: =$D$19*F$10 -> 0 | G50: =$E$19*F$10 -> -1.420774588 | H50: =$F$19*F$10 -> -1.479412561 | I50: =$G$19*F$10 -> -0.7691294832
C51: Year 4 | G51: =$D$19*G$10 -> 0 | H51: =$E$19*G$10 -> 0 | I51: =$F$19*G$10 -> 0
C52: Year 5 | H52: =$D$19*H$10 -> 0 | I52: =$E$19*H$10 -> 0
C54: Total Change in Output Relative to Baseline from Fiscal Measures
C56: Level | D56: =SUM(D27:D52) -> 0 | E56: =SUM(E27:E52) -> -6.075299508 | F56: -12.60050326 | G56: -12.65779427 | H56: -6.382434904 | I56: -1.626724053
C57: In Percent of GDP | D57: =D56/'2. Input_Data'!W10*100 -> 0 | E57: =E56/'2. Input_Data'!X10*100 -> -0.9274037264 | F57: =F56/'2. Input_Data'!Y10*100 -> -1.847246759 | G57: =G56/'2. Input_Data'!Z10*100 -> -1.784657583 | H57: =H56/'2. Input_Data'!AA10*100 -> -0.8650591743 | I57: =I56/'2. Input_Data'!AB10*100 -> -0.2119585319

Sheet 6. Adjustment
B2: ='1. Assumptions'!C8&" - Analysis of Fiscal Measures on Output, "&Current_Year-1&"–"&Current_Year+5 -> Egypt - Analysis of Fiscal Measures on Output, 2013–2019
C5: =D5-1 -> 2012 | D5: =E5-1 -> 2013 | E5: =Current_Year -> 2014 | F5: =E5+1 -> 2015 | G5: =F5+1 -> 2016 | H5: =G5+1 -> 2017 | I5: =H5+1 -> 2018 | J5: =I5+1 -> 2019
D8: (In Levels, unless Othewise Indicated)
B10: Real GDP | C10: ='2. Input_Data'!U10 -> 596.8900376 | D10: ='2. Input_Data'!V10 -> 609.4124674 | E10: ='2. Input_Data'!W10 -> 628.4830637 | F10: ='2. Input_Data'!X10 -> 655.0868122 | G10: ='2. Input_Data'!Y10 -> 682.1234468 | H10: ='2. Input_Data'!Z10 -> 709.2561842 | I10: ='2. Input_Data'!AA10 -> 737.8032733 | J10: ='2. Input_Data'!AB10 -> 767.4727877
B11: Baseline GDP | C11: ='2. Input_Data'!U14 ->  | D11: ='2. Input_Data'!V14 ->  | E11: ='2. Input_Data'!W14 ->  | F11: ='2. Input_Data'!X14 ->  | G11: ='2. Input_Data'!Y14 ->  | H11: ='2. Input_Data'!Z14 ->  | I11: ='2. Input_Data'!AA14 ->  | J11: ='2. Input_Data'!AB14 -> 
B12: Total change in output relative to baseline from fiscal measures | E12: ='5. Impact'!D56 -> 0 | F12: ='5. Impact'!E56 -> -6.075299508 | G12: ='5. Impact'!F56 -> -12.60050326 | H12: ='5. Impact'!G56 -> -12.65779427 | I12: ='5. Impact'!H56 -> -6.382434904 | J12: ='5. Impact'!I56 -> -1.626724053
B13: In Percent of GDP | E13: =E12*100/E10 -> 0 | F13: -0.9274037264 | G13: -1.847246759 | H13: -1.784657583 | I13: -0.8650591743 | J13: -0.2119585319
B14: Baseline GDP with the impact of discretionary fiscal measures | C14: =C11+C12 ->  | D14: =D11+D12 ->  | E14: =E11+E12 -> 
D16: (Percent Change, unless Othewise Indicated)
B18: Real GDP | D18: ='2. Input_Data'!V16 -> 2.097945861 | E18: ='2. Input_Data'!W16 -> 3.129341346 | F18: ='2. Input_Data'!X16 -> 4.233009611 | G18: ='2. Input_Data'!Y16 -> 4.127183455 | H18: ='2. Input_Data'!Z16 -> 3.977687264 | I18: ='2. Input_Data'!AA16 -> 4.024933403 | J18: ='2. Input_Data'!AB16 -> 4.021331357
B19: Baseline GDP | E19: =100*((E11-D11)/D11) -> 
B20: Baseline GDP with the impact of discretionary fiscal measures | E20: =100*((E14-D14)/D14) ->  | F20: =100*((F14-E14)/E14) -> 
B21: Deficit reducing measures (in percent of GDP) | E21: ='1. Assumptions'!D39 -> 0 | F21: ='1. Assumptions'!E39 -> 2.5 | G21: ='1. Assumptions'!F39 -> 2 | H21: ='1. Assumptions'!G39 -> 1 | I21: ='1. Assumptions'!H39 -> 0 | J21: ='1. Assumptions'!I39 -> 0
B24: Source: IMF WEO and IMF staff Estimated. Multiplier Estimated from Abdallah, Davies and Fischer, 2014 (forthcoming).
